bitfinex-derivatives/quotes_ETHF0:USTF0_20250530
["timestamp","ask_amount","ask_price","bid_price","bid_amount"]
[1748587853044,2.01926,2612.0,2611.9,0.0057391]
[1748587853244,1.2538,2612.0,2611.9,0.7712291]
[1748587853440,4.4816,2612.6,2612.2,0.7654]
[1748587853638,2.08494,2612.5,2612.3,0.76537]
[1748587853937,1.3196,2612.5,2612.4,0.76534]
[1748587854240,0.1913,2612.7,2612.6,0.76529]
[1748587854845,0.1913,2612.7,2612.6,1.38989]
[1748587856047,0.1913,2612.7,2612.3,0.76536]
[1748587856247,0.76532,2612.5,2612.3,0.76536]
[1748587856449,1.3196,2612.6,2612.1,3.2078]
[1748587856649,1.2703,2612.4,2612.2,0.76539]
[1748587856853,1.2703,2612.4,2612.1,3.2078]
[1748587857145,0.6727,2612.5,2612.1,3.2078]
[1748587857146,0.6727,2612.5,2612.4,0.76534]
[1748587857347,1.2703,2612.8,2612.7,0.76526]
[1748587857547,3.2078,2612.9,2612.8,0.76523]
[1748587857747,1.38268,2613.0,2612.8,3.2078]
[1748587857951,1.2703,2612.9,2612.8,3.2078]
[1748587858249,1.2703,2612.9,2612.7,0.76524]
[1748587858842,0.1913,2612.8,2612.7,0.76524]
[1748587859147,0.1913,2612.8,2612.7,5.02424]
[1748587860443,1.2703,2613.4,2613.1,0.76514]
[1748587860642,1.2703,2613.4,2613.0,0.76516]
[1748587860845,0.7651291,2613.2,2613.0,0.76516]
[1748587861045,1.2727,2613.1,2612.7,3.2078]
[1748587861240,2.03786,2613.1,2612.8,0.76522]
[1748587861452,0.76521,2612.9,2612.7,3.2078]
[1748587861645,0.76523,2612.8,2612.7,3.2078]
[1748587861847,4.4805,2612.8,2612.2,3.2078]
[1748587862148,0.76541,2612.2,2611.9,0.7711991]
[1748587862448,2.03814,2612.1,2611.9,0.0057391]
[1748587862642,1.2727,2612.1,2611.9,0.0057391]
[1748587862857,1.3056,2612.3,2612.0,3.2078]
[1748587863049,3.39768,2612.3,2612.1,0.76542]
[1748587863352,3.39768,2612.3,2612.0,3.97325]
[1748587863852,3.39768,2612.3,2612.1,0.76543]
[1748587864051,2.6323,2612.3,2612.0,3.2078]
[1748587864248,18.389,2613.4,2612.0,3.2078]
[1748587864249,0.76522,2612.9,2612.2,1.91352]
[1748587864452,1.3267,2612.8,2612.7,0.76526]
[1748587864852,2.09193,2612.8,2612.6,0.76527]
[1748587865150,1.3267,2612.8,2612.7,0.76526]
[1748587865545,3.8149,2613.1,2612.6,5.5397]
[1748587865751,4.5345,2613.1,2613.0,0.76517]
[1748587866054,0.76518,2613.0,2612.8,0.76521]
[1748587866259,1.267,2613.0,2612.6,4.259]
[1748587866553,1.267,2613.0,2612.9,0.7652]
[1748587866753,0.7651391,2613.2,2613.0,0.76515]
[1748587866953,0.76514,2613.1,2612.9,0.76518]
[1748587867157,9.1e-06,2613.2,2612.9,1.2385]
[1748587867353,9.1e-06,2613.2,2613.1,0.76514]
[1748587868248,2.23279067,2614.8,2613.1,9.4463]
[1748587868454,1.19130038,2614.7,2614.6,0.7647]
[1748587868650,1.267,2615.3,2614.5,7.4668]
[1748587868847,0.76452,2615.2,2614.8,3.2078]
[1748587869047,0.76461,2614.9,2614.8,3.2078]
[1748587869257,0.7647,2614.6,2614.5,4.259]
[1748587869554,0.76467,2614.7,2614.3,4.2647391]
[1748587869754,1.2626,2614.8,2614.5,3.2078]
[1748587869950,0.00367828,2615.1,2614.5,3.2078]
[1748587870257,0.00367828,2615.1,2615.0,0.76458]
[1748587870456,0.00367828,2615.1,2614.8,7.4668]
[1748587871356,0.7646,2615.0,2614.8,7.4668]
[1748587871551,1.2626,2614.9,2614.8,7.4668]
[1748587872255,2.02721,2614.9,2614.8,7.4668]
[1748587872757,1.2626,2614.9,2614.8,7.4668]
[1748587872958,2.02721,2614.9,2614.8,7.4668]
[1748587873154,1.2626,2614.9,2614.8,7.4668]
[1748587873652,2.02721,2614.9,2614.8,7.4668]
[1748587873854,0.76469,2614.7,2614.4,8.23055]
[1748587874058,0.7646,2615.0,2614.4,7.4658]
[1748587874254,0.7646,2615.0,2614.7,3.97246]
[1748587874447,0.76463,2614.9,2614.7,3.2078]
[1748587874861,1.3432,2615.0,2614.5,1.2903]
[1748587875063,0.76465,2614.8,2614.5,2.05501]
[1748587875359,0.76468,2614.7,2614.5,0.76471]
[1748587875659,1.3377,2614.6,2614.5,0.76471]
[1748587875956,1.3377,2614.6,2614.4,7.4648]
[1748587876358,1.3377,2614.6,2614.4,8.22956]
[1748587876552,1.3377,2614.6,2614.4,7.4648]
[1748587876750,2.10243,2614.6,2614.4,7.4648]
[1748587876954,0.76473,2614.5,2614.4,7.4648]
[1748587878153,0.76473,2614.5,2614.4,3.2078]
[1748587878351,0.76476,2614.4,2614.3,0.0057391]
[1748587878658,2.08976,2614.4,2614.3,9.1e-06]
[1748587878852,7.08976,2614.4,2614.3,9.1e-06]
[1748587879051,7.73696,2614.4,2614.3,9.1e-06]
[1748587880256,11.99396,2614.4,2614.3,9.1e-06]
[1748587883358,0.76508,2613.3,2613.2,3.2078]
[1748587884059,0.76508,2613.3,2612.6,1.217]
[1748587884060,0.76526,2612.7,2612.6,3.2078]
[1748587884261,0.76534,2612.4,2612.3,3.2078]
[1748587884556,0.0057391,2612.6,2612.5,0.76531]
[1748587884763,0.0057391,2612.6,2612.3,3.2078]
[1748587884952,0.0057391,2612.6,2612.4,1.2602]
[1748587885360,0.0057391,2612.6,2612.4,2.02552]
[1748587885563,0.0057391,2612.6,2612.5,0.76532]
[1748587885763,0.0057391,2612.6,2612.5,1.2602]
[1748587885953,0.7710291,2612.6,2612.5,1.2602]
[1748587886158,0.76534,2612.4,2612.3,3.2078]
[1748587886358,0.7710391,2612.6,2612.3,3.2078]
[1748587886667,0.0057391,2612.6,2612.4,1.2602]
[1748587887060,0.0057391,2612.6,2612.5,0.76532]
[1748587887571,0.7651,2613.3,2613.0,0.76517]
[1748587887760,0.76515,2613.1,2612.9,3.2078]
[1748587887960,0.76515,2613.1,2612.9,4.4442]
[1748587888162,5.5424,2613.5,2612.9,3.2078]
[1748587888362,0.76534,2612.4,2612.3,3.2078]
[1748587888769,0.76533,2612.5,2612.3,3.2078]
[1748587888962,1.28807828,2612.6,2612.5,0.76532]
[1748587889269,0.76533,2612.5,2612.3,3.97317]
[1748587889477,2.05338828,2612.6,2612.4,1.2364]
[1748587889763,2.05338828,2612.6,2612.2,0.6259]
[1748587889764,3.20130828,2612.6,2612.2,0.6259]
[1748587889966,0.7654,2612.2,2612.1,0.0057391]
[1748587892059,2.05338828,2612.6,2612.1,0.0057391]
[1748587892362,0.76898828,2612.6,2612.4,0.76533]
[1748587892562,0.76898828,2612.6,2612.5,1.2708]
[1748587893165,0.7654,2612.2,2612.1,3.2135391]
[1748587893370,1.2453,2612.5,2612.1,3.2135391]
[1748587893560,0.00367828,2612.6,2612.1,3.2135391]
[1748587893561,0.76536,2612.4,2612.2,2.05709]
[1748587893765,0.76532,2612.5,2612.3,2.05706]
[1748587894173,0.76531,2612.5,2612.4,0.76533]
[1748587894368,0.76896828,2612.6,2612.4,2.05703]
[1748587894571,0.95661,2612.5,2612.4,1.2917]
[1748587894974,0.7654,2612.2,2612.1,3.2135391]
[1748587895662,0.7654,2612.2,2612.1,0.0057391]
[1748587896977,4.4531,2612.4,2612.1,0.0057391]
[1748587897170,0.76536,2612.4,2612.1,0.0057391]
[1748587897369,0.1913,2612.5,2612.1,0.0057391]
[1748587897370,0.76538,2612.3,2612.1,0.7711491]
[1748587897574,0.76538,2612.3,2612.2,0.7654]
[1748587897976,0.76539,2612.3,2612.1,0.7711591]
[1748587898676,0.7654,2612.2,2612.1,0.0057391]
[1748587898975,2.1097,2612.2,2612.1,0.0057391]
[1748587899872,6.3697,2612.2,2612.1,0.0057391]
[1748587901176,0.76571,2611.2,2610.9,3.2078]
[1748587901375,0.76571,2611.2,2611.0,0.76574]
[1748587901569,0.76571,2611.2,2611.0,2.04514]
[1748587902275,0.76578,2610.9,2610.8,0.0057391]
[1748587902675,1.3345391,2611.1,2610.8,1.3435391]
[1748587902878,0.76578,2610.9,2610.8,1.3435391]
[1748587903176,0.76578,2610.9,2610.8,0.0057391]
[1748587903476,3.97358,2610.9,2610.8,0.0057391]
[1748587903870,3.97358,2610.9,2610.3,1.3378]
[1748587903871,8.2078,2610.9,2609.7,3.2078]
[1748587904070,3.2078,2610.2,2609.8,0.07663422]
[1748587904371,1.3288,2610.1,2609.8,0.07663422]
[1748587904577,1.3288,2610.1,2609.8,0.84272422]
[1748587905188,1.3288,2610.1,2609.8,0.07663422]
[1748587905483,0.76608,2609.9,2609.8,0.07663422]
[1748587905788,5.6188,2610.1,2609.8,0.07663422]
[1748587905990,0.76608,2609.9,2609.8,0.07663422]
[1748587907585,0.76606,2610.0,2609.8,0.07663422]
[1748587907889,2.08178,2609.9,2609.8,0.07663422]
[1748587908386,1.91529,2609.8,2609.1,0.6419]
[1748587908587,3.2078,2609.5,2608.9,3.2078]
[1748587908892,0.7663,2609.2,2608.9,3.97415]
[1748587909087,0.76634,2609.0,2608.9,3.2078]
[1748587909285,3.2078,2609.1,2608.5,0.76648]
[1748587909488,0.76642,2608.8,2608.7,9.1e-06]
[1748587909690,0.76642,2608.8,2608.3,3.22674814]
[1748587909691,0.76652,2608.4,2608.3,0.01894814]
[1748587909890,13.26532,2608.4,2608.3,0.01894814]
[1748587910386,5.7467,2608.7,2608.6,0.76646]
[1748587910594,10.13965,2608.7,2608.3,0.01894814]
[1748587910892,9.3732,2608.7,2608.3,0.01894814]
[1748587911094,0.76647,2608.6,2608.3,0.78547814]
[1748587911291,1.2438,2608.6,2608.3,0.01894814]
[1748587911494,3.97432,2608.4,2608.3,0.01894814]
[1748587912286,8.2078,2608.4,2607.5,3.97458]
[1748587912486,0.76671,2607.8,2607.5,3.2078]
[1748587912689,2.01054,2607.7,2607.5,3.2078]
[1748587912988,1.2438,2607.7,2607.5,3.2078]
[1748587913383,1.2438,2607.7,2607.5,3.97458]
[1748587913585,2.01053,2607.7,2607.5,3.2078]
[1748587913790,1.2438,2607.7,2607.5,3.2078]
[1748587914390,0.00575032,2607.9,2607.8,0.76669]
[1748587916889,0.00575032,2607.9,2607.8,3.97449]
[1748587917093,3.2078,2608.4,2607.8,8.2078]
[1748587917290,3.2078,2608.4,2607.8,3.2078]
[1748587917488,3.97433,2608.4,2608.2,0.76657]
[1748587917792,3.97433,2608.4,2608.1,0.7666]
[1748587917989,0.76655,2608.3,2608.2,1.3146]
[1748587918196,3.97434,2608.4,2608.2,1.3146]
[1748587918695,3.2078,2608.4,2608.2,1.3146]
[1748587918892,0.00575032,2608.5,2608.2,1.3146]
[1748587919200,0.00575032,2608.5,2608.4,0.76652]
[1748587920895,0.00575032,2608.5,2608.2,1.3146]
[1748587921103,0.00575032,2608.5,2608.4,0.76652]
[1748587921396,0.76655,2608.3,2608.2,1.3146]
[1748587921592,0.76655,2608.4,2608.2,1.3146]
[1748587921794,0.76653,2608.4,2608.2,1.3146]
[1748587921994,3.21355032,2608.5,2608.3,0.76654]
[1748587922298,0.00575032,2608.5,2608.4,2.00212]
[1748587922693,0.00575032,2608.5,2608.4,2.66872]
[1748587922999,3.2078,2608.9,2608.4,11.1972]
[1748587923201,3.97418,2608.9,2608.4,6.1972]
[1748587923393,3.97418,2608.9,2608.7,0.76643]
[1748587923592,3.97418,2608.9,2608.8,1.3016]
[1748587923894,3.2078,2608.9,2608.5,0.648]
[1748587924093,0.76649,2608.5,2608.4,0.6666]
[1748587924405,0.76652,2608.4,2608.3,3.2078]
[1748587924696,0.76652,2608.4,2608.1,4.295]
[1748587924697,3.2078,2608.4,2607.6,3.8519]
[1748587924900,3.2078,2608.1,2607.6,5.1535]
[1748587925198,3.2078,2608.1,2607.7,1.3016]
[1748587925390,0.76669,2607.8,2607.7,1.3016]
[1748587926395,4.5528,2608.3,2607.7,1.3016]
[1748587926600,0.76662,2608.1,2607.9,0.76665]
[1748587926807,0.76662,2608.1,2608.0,1.3459]
[1748587927103,3.2078,2608.3,2608.0,1.3459]
[1748587927292,0.76658,2608.2,2608.0,1.3459]
[1748587927497,0.1917,2608.1,2608.0,2.11252]
[1748587927694,0.1917,2608.1,2608.0,0.76662]
[1748587927903,0.1917,2608.1,2607.7,3.2078]
[1748587927904,0.1917,2608.1,2607.6,6.285]
[1748587928104,0.1917,2608.1,2608.0,0.76664]
[1748587928300,0.95832,2608.1,2607.9,0.76665]
[1748587928605,0.1917,2608.1,2608.0,2.11254]
[1748587928800,0.1917,2608.1,2608.0,9.61534]
[1748587929007,0.1917,2608.1,2608.0,14.61534]
[1748587929302,3.2078,2608.7,2608.1,1.91652]
[1748587929504,1.93645258,2608.6,2608.4,0.7665]
[1748587929702,1.93645258,2608.6,2608.5,1.3191]
[1748587929906,1.16999258,2608.6,2608.5,2.08559]
[1748587930304,3.2078,2609.0,2608.5,6.3191]
[1748587930608,1.93844369,2608.9,2608.7,0.76643]
[1748587930811,0.76639,2608.9,2608.8,1.3191]
[1748587931100,1.17422335,2608.9,2608.8,2.0855]
[1748587931503,0.1916,2609.0,2608.8,10.6141]
[1748587931708,0.1916,2609.0,2608.9,3.97417]
[1748587931903,3.2078,2609.9,2609.0,1.91586]
[1748587932101,0.7661,2609.9,2609.6,0.76615]
[1748587932304,0.76621,2609.5,2609.3,4.295]
[1748587932500,0.76621,2609.5,2609.4,1.3035]
[1748587933110,0.00575032,2609.7,2609.4,1.3035]
[1748587933701,0.1916,2609.6,2609.5,0.76618]
[1748587933910,0.1916,2609.6,2609.4,1.3035]
[1748587934105,0.1916,2609.6,2609.5,0.7662]
[1748587935004,0.1916,2609.6,2609.4,1.3035]
[1748587935202,0.1916,2609.6,2609.5,0.7662]
[1748587935603,0.1916,2609.6,2609.4,2.06971]
[1748587935802,0.7662,2609.5,2609.4,1.3035]
[1748587936005,0.76627,2609.3,2609.1,6.2169]
[1748587936207,0.95778,2609.6,2609.4,0.76621]
[1748587936402,0.95779,2609.6,2609.2,4.4617]
[1748587936604,0.95779,2609.6,2609.4,0.76621]
[1748587937009,0.95779,2609.6,2609.5,1.2539]
[1748587937405,0.1916,2609.6,2609.2,3.2078]
[1748587937719,0.76634,2609.0,2608.9,3.2078]
[1748587937912,0.76634,2609.0,2608.5,4.299]
[1748587937913,3.2078,2609.3,2608.7,0.76643]
[1748587938113,0.7663,2609.2,2609.0,0.76633]
[1748587938313,4.6986,2609.6,2608.8,1.2539]
[1748587938617,0.76637,2608.9,2608.8,1.2539]
[1748587939014,1.3217,2609.2,2608.8,1.2539]
[1748587939314,3.8329,2609.3,2608.8,1.2539]
[1748587939517,1.39137,2609.3,2608.8,1.2539]
[1748587939815,1.3217,2609.5,2608.8,1.2539]
[1748587939816,0.76625,2609.4,2608.8,1.2539]
[1748587940018,0.76625,2609.4,2609.2,0.76627]
[1748587940213,0.76625,2609.3,2608.9,3.2078]
[1748587940406,1.3217,2609.5,2609.0,1.2601]
[1748587940715,3.3994,2609.6,2609.5,0.7662]
[1748587941716,4.16559,2609.6,2609.2,5.087]
[1748587941910,0.1916,2609.6,2609.5,0.7662]
[1748587942106,0.1916,2609.6,2609.5,8.974]
[1748587942409,0.1916,2609.6,2609.5,8.273]
[1748587943212,0.1916,2609.6,2609.5,13.273]
[1748587944114,0.6251,2610.3,2609.5,12.5068]
[1748587944314,1.2502,2610.2,2609.7,0.76614]
[1748587944519,0.76604,2610.1,2609.6,1.984]
[1748587944713,1.2502,2610.2,2609.7,1.2848]
[1748587945019,2.02194032,2610.2,2610.0,0.76603]
[1748587945211,1.91513,2610.0,2609.1,4.298]
[1748587945412,3.2078,2609.8,2609.1,4.298]
[1748587945620,1.291,2609.7,2609.1,4.298]
[1748587945826,2.05714,2609.7,2609.5,0.76617]
[1748587946011,1.291,2609.7,2609.6,0.76617]
[1748587946919,3.2078,2610.1,2609.5,4.298]
[1748587947116,0.76615,2609.7,2609.5,5.06418]
[1748587947312,0.76615,2609.7,2609.5,5.06419]
[1748587947623,2.05717,2609.6,2609.5,4.298]
[1748587948218,1.291,2609.6,2609.5,0.7662]
[1748587948420,1.291,2609.6,2609.3,3.2078]
[1748587948722,2.05718,2609.6,2609.4,0.76622]
[1748587949020,2.05718,2609.6,2609.3,3.97403]
[1748587949620,1.291,2609.6,2609.4,0.76622]
[1748587949808,2.05718,2609.6,2609.4,0.76622]
[1748587950622,2.05718,2609.6,2609.3,3.97404]
[1748587950818,1.291,2609.6,2609.3,3.2078]
[1748587951117,0.7663,2609.2,2608.9,41.8488]
[1748587951324,0.7663,2609.2,2609.0,4.298]
[1748587951519,1.298,2609.1,2609.0,5.06434]
[1748587951718,1.298,2609.1,2608.9,3.2078]
[1748587952023,1.41822,2609.5,2609.2,0.76627]
[1748587952220,1.298,2609.4,2609.2,0.76627]
[1748587952424,1.298,2609.4,2609.0,1.2202]
[1748587952624,1.298,2609.4,2609.3,0.76625]
[1748587952821,1.298,2609.4,2609.2,0.76627]
[1748587953127,1.298,2609.4,2608.9,3.2078]
[1748587953419,0.76636,2609.0,2608.7,4.298]
[1748587953622,1.298,2608.9,2608.7,5.0644]
[1748587953820,1.298,2608.9,2608.8,0.7664]
[1748587958522,1.298,2608.9,2608.6,3.21355032]
[1748587958718,0.76643,2608.7,2608.6,0.00575032]
[1748587959126,1.2507,2608.7,2608.6,0.00575032]
[1748587959424,2.01713,2608.7,2608.6,0.00575032]
[1748587959729,1.2507,2608.7,2608.6,0.00575032]
[1748587959926,1.2507,2608.7,2608.6,0.77221032]
[1748587962523,0.76632,2609.1,2608.6,0.00575032]
[1748587962820,1.98972,2609.1,2608.9,0.76635]
[1748587963026,1.98972,2609.1,2608.7,1.2265]
[1748587963419,1.98972,2609.1,2609.0,0.76634]
[1748587963623,1.2234,2609.1,2609.0,0.76634]
[1748587965126,1.2234,2609.1,2608.9,0.76637]
[1748587965325,1.98972,2609.1,2609.0,0.76634]
[1748587965625,0.76635,2609.0,2608.8,0.7664]
[1748587965823,1.243,2608.9,2608.7,2.66591]
[1748587966021,1.243,2608.9,2608.6,4.28175032]
[1748587966022,2.00938,2608.9,2608.6,4.28175032]
[1748587966424,0.76643,2608.7,2608.6,4.28175032]
[1748587966831,0.76643,2608.7,2608.6,0.00575032]
[1748587967827,2.59933,2608.7,2608.6,0.00575032]
[1748587969129,2.59933,2608.7,2608.6,3.98001032]
[1748587969130,1.8329,2608.7,2608.6,3.98001032]
[1748587969334,4.276,2609.3,2608.8,0.76638]
[1748587969631,2.5879,2609.1,2608.8,0.76638]
[1748587969825,0.76643,2608.7,2608.6,0.00575032]
[1748587970429,0.76643,2608.7,2608.6,0.77221032]
[1748587970728,2.5879,2609.1,2608.6,0.00575032]
[1748587971027,0.7664,2608.9,2608.7,0.76642]
[1748587971226,1.2952,2608.8,2608.7,0.76642]
[1748587971428,2.0616,2608.8,2608.7,0.76642]
[1748587972131,0.76643,2608.7,2608.6,0.00575032]
[1748587972432,1.3052,2608.7,2608.6,0.77221032]
[1748587972726,1.2927,2609.1,2608.6,0.00575032]
[1748587972932,1.3052,2609.0,2608.6,0.00575032]
[1748587973135,0.76643,2608.7,2608.6,0.77221032]
[1748587974223,3.2078,2609.5,2609.1,0.76631]
[1748587974532,0.76618,2609.6,2609.0,7.4838]
[1748587974727,2.07139,2609.5,2609.4,0.7662]
[1748587974927,2.07139,2609.5,2609.3,0.76624]
[1748587975128,0.76634,2609.1,2608.7,0.6523]
[1748587975333,0.76634,2609.1,2608.6,7.48955032]
[1748587975628,1.2241,2609.0,2608.9,0.76634]
[1748587976236,1.99044,2609.0,2608.8,0.76639]
[1748587976433,1.99044,2609.0,2608.6,8.73235032]
[1748587976434,1.2241,2609.0,2608.9,0.76637]
[1748587976736,0.76628,2609.2,2609.0,0.76632]
[1748587977033,1.2241,2609.1,2608.7,1.2428]
[1748587977633,1.2241,2609.1,2609.0,0.76634]
[1748587977933,1.99041,2609.1,2609.0,0.76634]
[1748587978429,1.2241,2609.1,2609.0,0.76634]
[1748587978835,1.99042,2609.1,2608.9,0.76635]
[1748587979136,1.99043,2609.1,2608.9,0.76635]
[1748587979331,1.99042,2609.1,2608.7,1.2428]
[1748587979527,1.99042,2609.1,2608.9,0.76634]
[1748587979727,1.99042,2609.1,2608.7,1.2428]
[1748587980032,1.2241,2609.1,2609.0,0.76634]
[1748587980434,1.99041,2609.1,2609.0,0.76634]
[1748587980737,1.99041,2609.1,2608.7,1.2428]
[1748587981138,1.99041,2609.1,2608.9,0.76635]
[1748587981341,1.2241,2609.1,2608.6,3.21355032]
[1748587981538,0.76642,2608.8,2608.6,0.00575032]
[1748587981835,0.76643,2608.7,2608.6,0.00575032]
[1748587982033,0.76641,2608.8,2608.7,0.76643]
[1748587982226,0.76641,2608.8,2608.6,0.00575032]
[1748587982429,0.76641,2608.8,2608.6,0.77219032]
[1748587983336,1.2759,2608.9,2608.8,0.7664]
[1748587983529,0.6478,2609.4,2609.3,0.76625]
[1748587983841,3.2078,2609.5,2609.4,0.76622]
[1748587984141,4.4837,2609.9,2609.8,0.76611]
[1748587984342,5.65226302,2609.9,2609.8,0.76611]
[1748587984533,3.97389,2609.9,2609.6,0.76615]
[1748587984838,3.97389,2609.9,2609.7,0.76613]
[1748587985343,3.2078,2609.9,2609.8,0.76611]
[1748587985531,0.76607,2610.0,2609.8,0.76611]
[1748587985732,0.00575032,2610.2,2609.9,1.3057]
[1748587985938,0.00575032,2610.2,2610.1,3.97382]
[1748587986139,0.00575032,2610.2,2610.1,0.76602]
[1748587986338,3.2e-07,2610.2,2610.1,8.97382]
[1748587986943,2.23279067,2611.3,2610.1,8.2078]
[1748587987140,2.23279067,2611.3,2611.2,0.7657]
[1748587987542,2.09499,2611.6,2611.2,2.0106]
[1748587988036,0.76562,2611.5,2611.2,2.0106]
[1748587988443,0.76567,2611.3,2611.1,3.21355032]
[1748587988638,0.7657,2611.2,2611.1,0.00575032]
[1748587989641,4.5372,2611.4,2611.1,0.00575032]
[1748587989842,0.7657,2611.2,2611.1,0.00575032]
[1748587990846,4.5372,2611.4,2611.1,0.00575032]
[1748587991143,0.7657,2611.2,2611.1,0.00575032]
[1748587992148,2.0101,2611.2,2611.1,0.00575032]
[1748587994252,0.76602,2610.1,2610.0,3.2078]
[1748587994451,0.76608,2609.9,2609.8,1.877]
[1748587995946,0.00575032,2610.1,2609.8,1.877]
[1748587996152,0.76608,2609.9,2609.8,1.877]
[1748587996656,0.76611,2609.8,2609.7,4.266]
[1748587996854,0.76614,2609.7,2609.6,0.00575032]
[1748587997048,2.03174,2609.7,2609.6,3.2e-07]
[1748588002564,0.76614,2609.7,2609.6,3.2e-07]
[1748588002857,3.2078,2609.8,2609.6,3.2e-07]
[1748588002858,3.2078,2609.8,2609.6,6.22380032]
[1748588003053,3.2078,2609.8,2609.7,1.98994]
[1748588003257,0.00575032,2610.1,2610.0,0.76605]
[1748588003455,0.00575032,2610.1,2610.0,5.03305]
[1748588003857,3.2078,2610.6,2610.2,0.76598]
[1748588004061,3.97369,2610.6,2610.4,0.76591]
[1748588004257,3.97369,2610.6,2610.5,1.2238]
[1748588004456,3.2078,2610.6,2610.5,1.9897]
[1748588004656,3.2078,2610.6,2610.5,6.2567]
[1748588005662,3.2078,2610.6,2610.5,5.4908]
[1748588005863,3.2078,2610.6,2610.5,6.2567]
[1748588008356,0.7659,2610.5,2610.4,4.266]
[1748588008861,3.97369,2610.6,2610.4,4.266]
[1748588009065,3.97369,2610.6,2610.4,5.5706]
[1748588009364,3.2078,2610.6,2610.4,5.5706]
[1748588009565,3.2078,2610.6,2610.5,0.7659]
[1748588009765,3.2078,2610.6,2610.5,2.0705]
[1748588010265,0.00575032,2610.8,2610.5,1.3046]
[1748588010654,0.00575032,2610.8,2610.7,0.76584]
[1748588011054,0.00575032,2610.8,2610.7,2.07044]
[1748588011258,3.2078,2611.6,2610.7,6.3046]
[1748588011459,1.3425,2611.8,2611.2,3.2078]
[1748588011655,0.76553,2611.8,2611.6,0.76557]
[1748588011965,3.2078,2611.9,2611.3,6.223]
[1748588012363,3.21147049,2611.9,2611.3,8.14287032]
[1748588012565,3.97698049,2611.9,2611.4,0.674]
[1748588012765,0.76552,2611.8,2611.6,0.76557]
[1748588013065,0.76552,2611.8,2611.7,4.265]
[1748588013566,0.76552,2611.8,2611.7,5.569]
[1748588013758,0.76559,2611.6,2611.5,4.265]
[1748588014066,0.76558,2611.7,2611.5,4.265]
[1748588014266,0.76558,2611.7,2611.5,6.33461]
[1748588014467,0.76558,2611.6,2611.5,5.569]
[1748588014961,1.2592,2611.8,2611.3,0.65875032]
[1748588015268,0.76564,2611.4,2611.3,0.00575032]
[1748588016262,2.03174,2611.4,2611.3,0.00575032]
[1748588016455,0.7658,2610.9,2610.7,0.76584]
[1748588016655,0.7658,2610.9,2610.6,4.8903]
[1748588016858,0.7658,2610.9,2610.7,2.07263]
[1748588017267,2.03187,2611.0,2610.7,2.07263]
[1748588017467,1.2661,2611.0,2610.7,1.3068]
[1748588017664,3.2078,2611.1,2610.7,1.3068]
[1748588017861,0.76567,2611.3,2611.1,0.76571]
[1748588018368,0.76559,2611.6,2611.4,0.76563]
[1748588018669,0.76561,2611.5,2611.4,4.265]
[1748588018870,2.10691,2611.5,2611.4,4.265]
[1748588019365,1.3413,2611.5,2611.2,0.76568]
[1748588019569,1.3413,2611.5,2611.0,0.76575]
[1748588019769,0.76574,2611.1,2610.9,5.5779]
[1748588019970,0.76574,2611.1,2610.9,6.34367]
[1748588020170,0.76571,2611.2,2611.0,0.76575]
[1748588020371,1.3413,2611.3,2611.2,0.7657]
[1748588020564,1.3413,2611.3,2610.9,5.5779]
[1748588020565,2.10697,2611.3,2611.1,0.76571]
[1748588021069,1.3413,2611.3,2611.2,0.7657]
[1748588021672,2.10697,2611.3,2611.1,0.76571]
[1748588022071,0.7657,2611.2,2611.0,0.76574]
[1748588022266,3.2078,2611.7,2611.1,1.2211]
[1748588022471,1.2243,2611.6,2611.1,1.2211]
[1748588022769,3.2078,2611.7,2611.6,0.76558]
[1748588022968,3.97335,2611.7,2611.5,0.76559]
[1748588023173,3.2078,2611.7,2611.5,0.76559]
[1748588023366,3.97336,2611.7,2611.5,1.98669]
[1748588023669,0.76556,2611.7,2611.5,1.98669]
[1748588023967,0.76558,2611.6,2611.5,1.2211]
[1748588024165,0.76557,2611.7,2611.5,1.2211]
[1748588025170,0.76558,2611.6,2611.5,1.2211]
[1748588026075,0.76557,2611.7,2611.5,1.98669]
[1748588026378,0.76558,2611.6,2611.5,1.2211]
[1748588026572,0.76918049,2611.9,2611.7,0.76555]
[1748588026870,0.76918049,2611.9,2611.4,4.265]
[1748588026871,0.76918049,2611.9,2611.8,1.3472]
[1748588027573,0.00367049,2611.9,2611.8,6.37372]
[1748588027774,0.76916049,2611.9,2611.8,5.6082]
[1748588027975,0.76916049,2611.9,2611.8,6.37372]
[1748588028171,0.00367049,2611.9,2611.8,6.37372]
[1748588028874,0.76916049,2611.9,2611.8,5.6082]
[1748588029478,0.76916049,2611.9,2611.8,4.261]
[1748588029970,0.00367049,2611.9,2611.5,3.2078]
[1748588030273,0.76555,2611.7,2611.6,4.261]
[1748588031475,1.32267049,2611.9,2611.2,7.4688]
[1748588031675,0.76567,2611.3,2611.2,4.261]
[1748588032173,8.2078,2611.3,2610.6,0.00575032]
[1748588032382,0.76583,2610.8,2610.6,0.00575032]
[1748588032674,2.08484,2610.7,2610.6,0.00575032]
[1748588032873,1.319,2610.7,2610.6,0.00575032]
[1748588033274,2.08484,2610.7,2610.6,0.00575032]
[1748588033477,2.08484,2610.7,2610.6,4.26675032]
[1748588033679,1.319,2610.7,2610.6,4.26675032]
[1748588034175,2.08484,2610.7,2610.6,4.26675032]
[1748588034371,3.2078,2610.9,2610.8,0.76581]
[1748588034577,3.2078,2610.9,2610.6,4.26675032]
[1748588034879,3.9736,2610.9,2610.6,5.03261032]
[1748588035278,1.3228,2610.8,2610.6,5.03261032]
[1748588035876,1.3228,2610.8,2610.7,0.76584]
[1748588036074,0.76573,2611.1,2610.8,0.76581]